Cogmind - Beta 12 @@@ ROGUE MODE // 2023.09.14 @ 10:51:24 Player: DuckBoy Result: Destroyed by G-47 Trooper with Particle Gun Performance ------------- Evolutions (2) 1000 Regions Visited (5) 1000 Robots Destroyed (69) 345 Value Destroyed (1872) 1872 Prototype IDs (25) 500 Alien Tech Used (0) 0 Bonus (334) 334 TOTAL SCORE: 5051 Bonus ------- High Alert Combat Kills 34 Aligned with FarCom 300 Cogmind --------- Core Integrity 0/550 Matter 171/300 Energy 9/100 System Corruption 8% Temperature Cool (19) Movement Treading (170) Location -8/Materials Parts ------- > --- POWER (1) -------- (None) > --- PROPULSION (6) --- Armored Treads > --- UTILITY (2) ------ (None) > --- WEAPON (2) ------- Heavy EM Shotgun > --- INVENTORY (5) ---- Humpback Peak State ------------ > --- POWER ------------ Light Deuterium Engine > --- PROPULSION ------- Light Treads Light Treads Light Treads Light Treads Light Treads Light Treads > --- UTILITY ---------- High-capacity Storage Unit Hacking Suite > --- WEAPON ----------- Heavy EM Shotgun Heavy EM Shotgun > --- INVENTORY -------- Ion Engine Improved Ion Engine Light Treads Improved Heat Sink Humpback Humpback 0b10 Alert Chip Light Armor Plating Hacking Suite Heavy EM Shotgun Heavy EM Shotgun Heavy EM Shotgun Heavy EM Shotgun Light EM Pulse Cannon Autogun Gauss Rifle Assault Cannon Improved Datajack [Rating: 26] Favorites ----------- Power Ion Engine Engine Ion Engine Propulsion Light Treads Treads Light Treads Utility High-capacity Storage Unit Device Heat Sink Storage High-capacity Storage Unit Hackware Hacking Suite Weapon Light EM Pulse Cannon Energy Gun Heavy EM Shotgun Energy Cannon Light EM Pulse Cannon Ballistic Gun Assault Rifle Ballistic Cannon Assault Cannon Special Melee Weapon Improved Datajack Build | -11 -10 -10 -10 -9 -8 ------- Run | Jun Mat Min Exi Min Mat Slots Evolved 4 | . . . . . 4 Power . | . . . . . . Propulsion 4 | . . . . . 4 Utility . | . . . . . . Weapon . | . . . . . . Parts Attached 58 | 6 5 1 1 . 45 Power 5 | 1 . . . . 4 Engine 5 | 1 . . . . 4 Core . | . . . . . . Reactor . | . . . . . . Propulsion 17 | 2 . . . . 15 Treads 17 | 2 . . . . 15 Leg . | . . . . . . Wheel . | . . . . . . Hover . | . . . . . . Flight . | . . . . . . Utility 6 | 1 2 . 1 . 2 Device 1 | . 1 . . . . Storage 4 | 1 1 . 1 . 1 Processor . | . . . . . . Hackware 1 | . . . . . 1 Protection . | . . . . . . Artifact . | . . . . . . Weapon 30 | 2 3 1 . . 24 Energy Gun 9 | . . . . . 9 Energy Cannon 5 | . 2 1 . . 2 Ballistic Gun 13 | 2 . . . . 11 Ballistic Cannon 1 | . . . . . 1 Launcher . | . . . . . . Special Weapon . | . . . . . . Impact Weapon . | . . . . . . Slashing Weapon . | . . . . . . Piercing Weapon . | . . . . . . Special Melee Weapon 2 | . 1 . . . 1 Unidentified Prototypes 2 | . . . . . 2 Corrupted Parts 1 | . . . . . 1 System Corruption 8 | . . . . . 8 Parts Lost 22 | . . . . . 22 Power 2 | . . . . . 2 Propulsion 11 | . . . . . 11 Utility . | . . . . . . Weapon 9 | . . . . . 9 Highest Loss Streak 9 | . . . . . 9 To Critical Strikes . | . . . . . . Average Slot Usage (%) 92 | . 92 100 100 100 89 Engine 10 | . 14 14 14 14 8 Treads 37 | . 28 28 28 28 44 Device 5 | . 6 14 14 14 1 Storage 10 | . 14 14 14 14 8 Hackware 4 | . . . . . 7 Energy Gun 2 | . . . . . 3 Energy Cannon 11 | . 25 28 28 28 . Ballistic Gun 8 | . 2 . . . 13 Naked Turns 3 | . . . . . 3 Heaviest Build 57 | 13 24 24 54 54 57 Greatest Support 120 | 40 40 40 40 40 120 Greatest Overweight (x) 4 | 2 . . 1 1 4 Average Overweight (x) . | . . . . 1 . Largest Inventory Capacity 35 | 8 10 10 20 20 35 Average Capacity 16 | 7 9 10 12 20 19 Most Carried 20 | 2 9 9 16 17 20 Average Carried 14 | . 6 9 10 16 18 Final Capacity 20 | 8 10 10 20 20 5 Final Carried 17 | 1 9 9 16 17 2 Class Distribution -------------------- 53% | Mutant 45% | Scavenger-Mutant Dominant Class ---------------- Mutant | -10/Materials Mutant | -10/Mines Mutant | -10/Exiles Mutant | -9/Mines Scavenger-Mutant | -8/Materials Resources | -11 -10 -10 -10 -9 -8 ----------- Run | Jun Mat Min Exi Min Mat Matter Collected 1261 | 207 45 . . 27 982 Remotely . | . . . . . . Salvage Created 2618 | . 515 . . . 2103 Parts 176 | . 31 . . . 145 Haulers Intercepted 5 | . . . . . 5 Recyclers Shooed 2 | . . . . . 2 Parts Field Recycled . | . . . . . . Retrieved Matter . | . . . . . . Parts Self-Destructed . | . . . . . . Prevented . | . . . . . . Kills | -11 -10 -10 -10 -9 -8 ------- Run | Jun Mat Min Exi Min Mat Combat Hostiles Destroyed 49 | . 11 . . . 38 Melee 1 | . . . . . 1 Guns 33 | . . . . . 33 Cannons 12 | . 11 . . . 1 AOE 1 | . . . . . 1 Classes Destroyed 12 | . 5 . . . 7 Worker 4 | . 1 . . . 3 Builder 2 | . . . . . 2 Tunneler 1 | . . . . . 1 Hauler 5 | . . . . . 5 Recycler 3 | . . . . . 3 Operator 2 | . 2 . . . . Watcher 3 | . 1 . . . 2 Swarmer 14 | . 3 . . . 11 Grunt 26 | . 8 . . . 18 Sentry 6 | . . . . . 6 Hunter 2 | . . . . . 2 Heavy 1 | . . . . . 1 Best Kill Streak 5 | . 5 . . . 4 Combat Bots Only 5 | . 5 . . . 3 Max Kills in Single Turn 2 | . 2 . . . 2 Gunslinging 1 | . . . . . 1 Exploded 1 | . . . . . 1 Melee 1 | . . . . . 1 Uniques/NPCs Destroyed . | . . . . . . Combat | -11 -10 -10 -10 -9 -8 -------- Run | Jun Mat Min Exi Min Mat Damage Taken 3493 | . 321 . . . 3172 Core 581 | . 29 . . . 552 Absorbed by Shields . | . . . . . . Regen/Repaired (Parts) 129 | . . . . . 129 Core Remaining (%) 94 | 100 . . . 88 . Volleys Fired 180 | . 21 . . . 159 Largest 2 | . 2 . . . 2 Hottest 112 | . 112 . . . 112 Shots Fired 351 | . 42 . . . 309 Gun 292 | . . . . . 292 Cannon 59 | . 42 . . . 17 Launcher . | . . . . . . Special . | . . . . . . Kinetic 255 | . . . . . 255 Thermal . | . . . . . . Explosive . | . . . . . . Electromagnetic 96 | . 42 . . . 54 Robot Hit Streak 19 | . 6 . . . 19 Robot Miss Streak 4 | . 2 . . . 4 Penetration Max 1 | . . . . . 1 Secondary Targets 4 | . . . . . 4 Max Gunslinging Chain 1 | . . . . . 1 Shots Hit Robots 255 | . 26 . . . 229 Core Hits 122 | 4 17 . . . 101 Critical Kills . | . . . . . . Critical Parts Destroyed . | . . . . . . Critical Strikes 1 | . 1 . . . . Corrupt 1 | . 1 . . . . Melee Attacks . | . . . . . . Impact . | . . . . . . Slashing . | . . . . . . Piercing . | . . . . . . Sneak Attacks . | . . . . . . Combat Hostiles . | . . . . . . Follow-up Attacks . | . . . . . . Damage Inflicted 4886 | 28 881 . . . 3977 Guns 3332 | . . . . . 3332 Cannons 941 | . 705 . . . 236 Explosions 437 | . 160 . . . 277 Melee . | . . . . . . Ramming 176 | 28 16 . . . 132 Kinetic 2720 | . . . . . 2720 Thermal 437 | . 160 . . . 277 Explosive . | . . . . . . Electromagnetic 1553 | . 705 . . . 848 Impact . | . . . . . . Slashing . | . . . . . . Piercing . | . . . . . . Highest Corruption 8 | . 2 2 2 2 8 Average Corruption 2 | . 2 2 2 2 8 Corruption Purged . | . . . . . . Corruption Blocked . | . . . . . . Effects 17 | . 4 1 9 2 1 Message Errors 2 | . 1 . . 1 . Matter Fused 6 | . 1 . 4 1 . Energy Discharges 5 | . . 1 3 . 1 Data Loss (minor) 2 | . 1 . 1 . . Data Loss (major) 1 | . . . 1 . . Misfires 1 | . 1 . . . . Overload Shots . | . . . . . . Overflow Damage 77 | . 56 . . . 21 Projectiles 56 | . 56 . . . . Explosions 17 | . . . . . 17 Melee 4 | . . . . . 4 Knockbacks . | . . . . . . Impact . | . . . . . . Kinetic . | . . . . . . Secondary . | . . . . . . Self-Inflicted Damage 137 | . 24 . . . 113 Shots 4 | . 1 . . . 3 Rammed 41 | 17 8 . . . 16 Targets Rammed 45 | 17 8 . . . 20 Kicked . | . . . . . . Crushed 4 | . . . . . 4 Highest Temperature 234 | . 153 . . . 234 Average Temperature 58 | . 45 . . . 65 Received Heat Transfer 1281 | . 129 . . . 1152 Siege Activations . | . . . . . . Robots Corrupted 2 | . . . . . 2 Combat Hostiles 2 | . . . . . 2 Parts Fried 10 | . 2 . . . 8 Impact Corruptions 1 | . . . . . 1 Robots Melted . | . . . . . . Combat Hostiles . | . . . . . . Parts Melted . | . . . . . . Heat Transferred 500 | . 200 . . . 300 Parts Sabotaged . | . . . . . . Parts Stolen . | . . . . . . Parts Stripped . | . . . . . . Power Chain Reactions 6 | . 2 . . . 4 Missiles Intercepted . | . . . . . . Alert | -11 -10 -10 -10 -9 -8 ------- Run | Jun Mat Min Exi Min Mat Peak Influence 464 | . 317 65 . . 464 Initial 65 | . . 65 . . . Average 185 | . 109 63 . . 236 Maximum Alert Level 2 | . 1 . . . 2 Low Security (%) 59 | 100 85 100 . 100 44 Level 1 32 | . 14 . . . 43 Level 2 8 | . . . . . 12 Level 3 . | . . . . . . Level 4 . | . . . . . . Level 5 . | . . . . . . High Security . | . . . . . . Max Security . | . . . . . . Squads Dispatched 11 | . 3 . . . 8 Investigation 6 | . 3 . . . 3 Extermination . | . . . . . . Reinforcement 3 | . . . . . 3 Assault 1 | . . . . . 1 Garrison 1 | . . . . . 1 Intercept . | . . . . . . Searches Triggered . | . . . . . . Construction Impeded . | . . . . . . Haulers Reinforced . | . . . . . . Active Scanning Responses . | . . . . . . Cargo Convoy Interrupts . | . . . . . . Stealth | -11 -10 -10 -10 -9 -8 --------- Run | Jun Mat Min Exi Min Mat Distress Signals 6 | . 1 . . . 5 Communications Jammed . | . . . . . . Distress Signals . | . . . . . . Times Spotted 83 | . 19 . . . 64 Peak Tracking Total 7 | . 5 . . . 7 Tactical Retreats 4 | . . . . . 4 Traps | -11 -10 -10 -10 -9 -8 ------- Run | Jun Mat Min Exi Min Mat Traps Triggered 1 | . 1 . . . . Indirectly . | . . . . . . Trap Hack Attempts 33 | . 2 . . . 31 Triggered . | . . . . . . Disarmed . | . . . . . . Reprogrammed 7 | . 2 . . . 5 Reused 3 | . . . . . 3 Traps Extracted . | . . . . . . Installed . | . . . . . . Triggered 3 | . . . . . 3 Machines | -11 -10 -10 -10 -9 -8 ---------- Run | Jun Mat Min Exi Min Mat Machines Disabled 1 | . . . . . 1 Max in Single Turn 1 | . . . . . 1 Garrison Access 1 | . . . . . 1 Machines Repaired . | . . . . . . Machines Sabotaged . | . . . . . . Overloaded Fab Kills . | . . . . . . Hacking | -11 -10 -10 -10 -9 -8 --------- Run | Jun Mat Min Exi Min Mat Machines Accessed 16 | . 6 . 1 . 9 Terminals 9 | . 4 . . . 5 Fabricators . | . . . . . . Repair Stations 2 | . . . . . 2 Recycling Units 3 | . 2 . . . 1 Scanalyzers 1 | . . . . . 1 Garrison Access . | . . . . . . Total Hacks 42 | . 15 . 1 . 26 Successful 16 | . 6 . 1 . 9 Failed 26 | . 9 . . . 17 Catastrophic 5 | . 2 . . . 3 Database Lockouts . | . . . . . . Manual 31 | . 14 . 1 . 16 Terminals 26 | . 10 . . . 16 Fabricators . | . . . . . . Repair Stations 7 | . . . . . 7 Recycling Units 6 | . 5 . . . 1 Scanalyzers 2 | . . . . . 2 Garrison Access . | . . . . . . Terminal Hacks 7 | . 3 . 1 . 3 Part Schematic 1 | . . . . . 1 Robot Schematic 3 | . 3 . . . . Alert Level 1 | . . . . . 1 Unreport Threat 1 | . . . . . 1 EX-Prototype ID Bank 1 | . . . 1 . . Fabricator Hacks . | . . . . . . Repair Station Hacks 3 | . . . . . 3 Scan Component 2 | . . . . . 2 Repair 1 | . . . . . 1 Recycling Unit Hacks 2 | . 1 . . . 1 Report Inventory 1 | . 1 . . . . Retrieve Components 1 | . . . . . 1 Scanalyzer . | . . . . . . Garrison Access Hacks . | . . . . . . Unauthorized Hacks 4 | . 2 . . . 2 Terminals 1 | . . . . . 1 Botnet 1 | . . . . . 1 Fabricators . | . . . . . . Repair Stations . | . . . . . . Recycling Units 2 | . 2 . . . . Tunnel 2 | . 2 . . . . Scanalyzers 1 | . . . . . 1 Extract 1 | . . . . . 1 Garrison Access . | . . . . . . Data Cores Recovered 2 | . 2 . . . . Used 2 | . 2 . . . . Hacking Detections 13 | . 5 . . . 8 Full Trace Events 3 | . 1 . . . 2 Feedback Events . | . . . . . . Feedback Blocked . | . . . . . . Robot Schematics Acquired 3 | . 3 . . . . Robots Built . | . . . . . . Authchips . | . . . . . . Time . | . . . . . . Total Robot Build Rating . | . . . . . . Part Schematics Acquired 2 | . . . . . 2 Parts Built . | . . . . . . Authchips . | . . . . . . Time . | . . . . . . Total Part Build Rating . | . . . . . . Parts Repaired 1 | . . . . . 1 Time 36 | . . . . . 36 Parts Recycled . | . . . . . . Recycled Matter . | . . . . . . Retrieved Matter . | . . . . . . Retrieved Components 9 | . . . . . 9 Parts Scanalyzed . | . . . . . . Part Schematics Acquired . | . . . . . . Parts Damaged . | . . . . . . Bothacking | -11 -10 -10 -10 -9 -8 ------------ Run | Jun Mat Min Exi Min Mat Used RIF Installer . | . . . . . . Robots Hacked . | . . . . . . Non-combat . | . . . . . . Combat . | . . . . . . Robot Hacks Applied . | . . . . . . Relay Couplers Released 1 | . . . . . 1 Machine Destruction 1 | . . . . . 1 Fabnet Peak Effective % . | . . . . . . Robots Rewired . | . . . . . . Allies Hacked . | . . . . . . Hacks Repelled . | . . . . . . Allies | -11 -10 -10 -10 -9 -8 -------- Run | Jun Mat Min Exi Min Mat Total Allies 2 | . . 2 . . . Largest Group 2 | . . 2 . . . Highest-Rated Group 42 | . . 42 . . . Highest-Rated Ally 31 | . . 31 . . . Total Orders . | . . . . . . Ally Attacks 7 | . . 7 . . . Total Damage 96 | . . 96 . . . Kills . | . . . . . . Allies Corrupted . | . . . . . . Allies Melted . | . . . . . . Intel | -11 -10 -10 -10 -9 -8 ------- Run | Jun Mat Min Exi Min Mat Robot Analysis Total . | . . . . . . Derelict Logs Recovered . | . . . . . . Drone Launches . | . . . . . . Drone Recoveries . | . . . . . . Exploration | -11 -10 -10 -10 -9 -8 ------------- Run | Jun Mat Min Exi Min Mat Turns Passed 3535 | 100 573 84 556 172 2050 Spaces Moved 1408 | 45 289 52 321 72 629 Core 23 | 12 . . . . 11 Treads 1385 | 33 289 52 321 72 618 Legs . | . . . . . . Wheels . | . . . . . . Hover . | . . . . . . Flight . | . . . . . . Fastest Speed 50 | 50 160 160 160 240 50 Average Speed 167 | 141 160 160 171 240 162 Slowest Speed 250 | 160 160 160 240 240 250 Overloaded Moves . | . . . . . . Propulsion Burnouts . | . . . . . . Robots Hopped . | . . . . . . Cave-ins Triggered . | . . . . . . Exploration Rate (%) 40 | 4 60 17 69 24 69 Regions Visited 5 Branch Regions 3 Pre-discovered Areas 2 | . 2 . . . . Known Exits Taken . | . . . . . . Unknown Exits Taken 5 | 1 1 1 1 1 . Scrap Searched 1 | . . . . 1 . Spaces Dug . | . . . . . . Terrain Destroyed 21 | . 3 . . . 18 Melee . | . . . . . . Projectile 3 | . . . . . 3 AOE 18 | . 3 . . . 15 Terrain Rammed . | . . . . . . Walls Destroyed . | . . . . . . Machines Disabled . | . . . . . . Actions | -11 -10 -10 -10 -9 -8 --------- Run | Jun Mat Min Exi Min Mat Total 2212 | 69 352 52 328 72 1339 Wait 434 | . 19 . . . 415 Move 1404 | 45 288 51 320 71 629 Hop . | . . . . . . Pick Up 34 | 2 8 . 5 1 18 Fast Attach 26 | 5 2 . . . 19 Attach 7 | 1 . . . . 6 Detach . | . . . . . . Swap 26 | . 3 1 1 . 21 Drop 24 | . 1 . 2 . 21 Fire 180 | . 21 . . . 159 Melee . | . . . . . . Ram . | . . . . . . Kick . | . . . . . . Crush 44 | 16 8 . . . 20 Escape Stasis . | . . . . . . Rewire . | . . . . . . Trap 33 | . 2 . . . 31 Miscellaneous . | . . . . . . Route ------- -11/Junkyard -10/Materials (discovered 3 exits: [*Mat x2] / [*Min]) -10/Mines -10/Exiles -9/Mines -8/Materials (discovered 2 exits: [*Fac x2]) History --------- Turn | Location | Event 34 | -11/Junkyard | Discovered new exit (range 16) 101 | -11/Junkyard | Entered Materials 271 | -10/Materials | Discovered new exit (range 12) 303 | -10/Materials | Build established: Mutant 535 | -10/Materials | Discovered new exit (range 15) 645 | -10/Materials | Discovered new exit (range 12) 674 | -10/Materials | Entered Mines 677 | -10/Mines | Met a Derelict bent on vengeance 751 | -10/Mines | Deemed a non-threat by the Exiles lab entrance 751 | -10/Mines | Discovered new exit (range 5) 758 | -10/Mines | Entered Exiles 798 | -10/Exiles | Met 8R-AWN 822 | -10/Exiles | Met EX-HEX 872 | -10/Exiles | Met EX-BIN 894 | -10/Exiles | Aligned with FarCom system 896 | -10/Exiles | Given EX-Vault access code 933 | -10/Exiles | Opened EX-Vault 942 | -10/Exiles | Found 0b10 Alert Chip 974 | -10/Exiles | Warned to stay clear of 0b10 Research branches 1017 | -10/Exiles | Met EX-DEC 1173 | -10/Exiles | Discovered new exit (range 14) 1314 | -10/Exiles | Left Exiles lab with 0b10 Alert Chip 1314 | -10/Exiles | Entered Mines 1439 | -9/Mines | Found a hidden stash of uninstalled traps 1444 | -9/Mines | Discovered new exit (range 15) 1486 | -9/Mines | Entered Materials 1486 | -8/Materials | Evolved 4 slots: Propulsion x4 1850 | -8/Materials | Build established: Scavenger-Mutant 2035 | -8/Materials | Repaired Broken Lgt. Treads 2754 | -8/Materials | Discovered new exit (range 16) 3178 | -8/Materials | Garrison activated, responded to threat 3267 | -8/Materials | Lost 4 parts (4n) 3396 | -8/Materials | Discovered new exit (range 13) 3459 | -8/Materials | Core integrity fell below 50% 3521 | -8/Materials | Core integrity fell below 20% 3536 | -8/Materials | Destroyed by G-47 Trooper with Particle Gun Last Messages --------------- 03512_ Slug penetrates H-61 Shepherd. 03514_ Dropped Imp. Ion Engine. 03517_ Acquired Assault Cannon. 03518_ Gauss Rifle destroyed. 03521_ Acquired Hvy. EM Shotgun. 03525_ U-05 Engineer builds a Wall. 03527_ H-61 Shepherd misfires. 03527_ K-01 Serf destroyed. 03528_ Extracted 3 matter. 03530_ H-61 Shepherd system terminally corrupted. 03530_ Dynamic Insulation System fried. 03530_ Cooling System fried. 03530_ Targeting Computer fried. 03530_ Visual Processing Unit fried. 03530_ U-05 Engineer builds a Wall. 03532_ Dropped Assault Cannon. 03532_ Acquired 3 matter. 03534_ Acquired Corrupted Arm. Treads. 03534_ Integrated Corrupted Arm. Treads (+8). 03536_ System corrupted: Energy discharge (-7). Map ----- +----------------------------------------------------+ | !% ! % #????? | | = #????? | | ![[ ###### | | """ ![[ = # # | | """"" [[ # # | | """"" ######## # # | | """ # # # # | | # # + # | | ! # # # # | | # # # # | | + # # # | | # # # # | | ##/######+### # # ###### | | ! ## # # # #????? | | =[=""## # # # #????? | | =!Y"## # # #!% #????? | | !!=""## # # #%%%#????? | | ! ## # # !#[![#????? | | ## # # #* %#????? | | ######## # ########!gg#????? | | ???????# # #?????##!g #????? | | ???????# ## ########g ##???? | | ???????###### r %!g]gu##???? | | ??????? ] ! #????? | | ??????? ]u! ##???? | | ???????? ########u@*##???? | | ????????#########??????#=! ##???? | | ???????????????????????#! #????? | | ???????????????????????# u#????? | | ???????????????????????# u #????? | | ???????????????????????# #????? | | ???????????????????????# #????? | | ??????????????????????? ????? | | ??????????????????????? ????? | | ??????????????????????? ???? | | ??????????????????????? *???? | | ?????????????????????? #??? | | ??????????????????????k ???? | | ?????????????????????? ???? | | ??????????????????????###+###???? | | ????????????????????????????????? | | ????????????????????????????????? | | ????????????????????????????????? | | ????????????????????????????????? | | ????????????????????????????????? | | ????????????????????????????????? | | ????????????????????????????????? | | ????????????????????????????????? | | ????????????????????????????????? | | ????????????????????????????????? | +----------------------------------------------------+ Best States ------------- Heat Dissipation 41 Energy Generation 14 Energy Capacity 275 Matter Stores 300 Matter Capacity 300 Sight Range 16 Terrain Scan Density 10 Evasion (%) 40 Recoil Reduction 6 Offensive Hacking 10 Item Schematics ----------------- Arm. Treads | -8/Materials | Hacked Sensor Array | -8/Materials | Extracted Robot Schematics ------------------ M-13 Machinist | -10/Materials | Hacked O-16 Technician | -10/Materials | Hacked A-02 Transporter | -10/Materials | Hacked Fabricated ------------ Nothing Alien Tech Used ----------------- None Achievements -------------- None Challenges ------------ None Game ------ Seed DimensionalProcessingRay Manual? 0 Play Time 00:35:11 Cumulative 298.2 hours Start 2023.09.14 @ 10:15:21 End 2023.09.14 @ 10:51:24 Sessions 1 Manual Loads 0 Difficulty Rogue Special Mode None Game No. 201 Rogue 198 Adventurer 3 Explorer 0 Win Type - Total 5 Types 4/0/1/0/0/0/0/0/0 Lore% 71 Gallery% 75 Achievement% 64 Wizard Run 0 Options --------- ASCII 0 Keyboard 0 Movement Numpad Keybinds 0 Fullscreen 1 Font 18/SmallcapsGlow Map View 76x50 Tactical HUD 1 Map Filters NONE Filters NONE Steam 1 RUN: 21b7fbc2-2bb8-4fa2-90e0-eafa233403aa